Department family,Entity,Date,Expense type,Expense area,Supplier,Transaction number,Amount
Department of Health,Leicestershire Partnership NHS Trust,01/07/20,Rent,NSPCC Training Cente,NSPCC,118954,28752.40
Department of Health,Leicestershire Partnership NHS Trust,01/07/20,Computer Software,Finance Department,VERSION 1,INVSOL006500,35825.70
Department of Health,Leicestershire Partnership NHS Trust,02/07/20,Unitary Payment,"The Agnes Unit (AKA Assessment and Treatment Centre) (P85, LPT)",ARDEN PARTNERSHIP (LEICESTER),SI0051,115601.77
Department of Health,Leicestershire Partnership NHS Trust,02/07/20,NURSE - BAND 2 - AGENCY,Beechwood Ward,HCL NURSING,HNSI0000413,737.45
Department of Health,Leicestershire Partnership NHS Trust,02/07/20,NURSE - BAND 5 - AGENCY,Beechwood Ward,HCL NURSING,HNSI0000413,398.20
Department of Health,Leicestershire Partnership NHS Trust,02/07/20,NURSE - BAND 5 - AGENCY,City Planned Care - East,HCL NURSING,HNSI0000413,20714.05
Department of Health,Leicestershire Partnership NHS Trust,02/07/20,NURSE - BAND 5 - AGENCY,City Planned Care - West,HCL NURSING,HNSI0000413,11052.45
Department of Health,Leicestershire Partnership NHS Trust,02/07/20,Nurse - Band 6 -Agency,City West CMHT MHSOP,HCL NURSING,HNSI0000413,3162.20
Department of Health,Leicestershire Partnership NHS Trust,02/07/20,NURSE - BAND 5 - AGENCY,Clarendon Ward,HCL NURSING,HNSI0000413,419.12
Department of Health,Leicestershire Partnership NHS Trust,02/07/20,NURSE - BAND 2 - AGENCY,Coalville Snibston Ward,HCL NURSING,HNSI0000413,348.71
Department of Health,Leicestershire Partnership NHS Trust,02/07/20,NURSE - BAND 5 - AGENCY,Coalville Snibston Ward,HCL NURSING,HNSI0000413,772.13
Department of Health,Leicestershire Partnership NHS Trust,02/07/20,NURSE - BAND 2 - AGENCY,Coalville Ward 2,HCL NURSING,HNSI0000413,712.04
Department of Health,Leicestershire Partnership NHS Trust,02/07/20,NURSE - BAND 5 - AGENCY,Coalville Ward 2,HCL NURSING,HNSI0000413,406.23
Department of Health,Leicestershire Partnership NHS Trust,02/07/20,NURSE - BAND 2 - AGENCY,Coleman Ward,HCL NURSING,HNSI0000413,1015.97
Department of Health,Leicestershire Partnership NHS Trust,02/07/20,NURSE - BAND 5 - AGENCY,Coleman Ward,HCL NURSING,HNSI0000413,2532.02
Department of Health,Leicestershire Partnership NHS Trust,02/07/20,NURSE - BAND 2 - AGENCY,Dalgliesh Ward,HCL NURSING,HNSI0000413,698.92
Department of Health,Leicestershire Partnership NHS Trust,02/07/20,NURSE - BAND 5 - AGENCY,"East Planned Care - Oadby,Wigston & Harborough",HCL NURSING,HNSI0000413,3359.26
Department of Health,Leicestershire Partnership NHS Trust,02/07/20,NURSE - BAND 2 - AGENCY,Gwendolen Ward,HCL NURSING,HNSI0000413,189.01
Department of Health,Leicestershire Partnership NHS Trust,02/07/20,NURSE - BAND 5 - AGENCY,Gwendolen Ward,HCL NURSING,HNSI0000413,931.39
Department of Health,Leicestershire Partnership NHS Trust,02/07/20,NURSE - BAND 5 - AGENCY,H&B Comm Hosp East Ward,HCL NURSING,HNSI0000413,387.77
Department of Health,Leicestershire Partnership NHS Trust,02/07/20,NURSE - BAND 2 - AGENCY,Kirby Ward,HCL NURSING,HNSI0000413,201.01
Department of Health,Leicestershire Partnership NHS Trust,02/07/20,NURSE - BAND 5 - AGENCY,Kirby Ward,HCL NURSING,HNSI0000413,326.24
Department of Health,Leicestershire Partnership NHS Trust,02/07/20,NURSE - BAND 5 - AGENCY,Lough Swithland Ward,HCL NURSING,HNSI0000413,723.16
Department of Health,Leicestershire Partnership NHS Trust,02/07/20,NURSE - BAND 2 - AGENCY,Rutland Ward Nursing,HCL NURSING,HNSI0000413,681.51
Department of Health,Leicestershire Partnership NHS Trust,02/07/20,NURSE - BAND 5 - AGENCY,Rutland Ward Nursing,HCL NURSING,HNSI0000413,1369.45
Department of Health,Leicestershire Partnership NHS Trust,02/07/20,NURSE - BAND 2 - AGENCY,St Lukes Stroke Ward,HCL NURSING,HNSI0000413,2471.19
Department of Health,Leicestershire Partnership NHS Trust,02/07/20,NURSE - BAND 2 - AGENCY,St Lukes Ward 3,HCL NURSING,HNSI0000413,928.08
Department of Health,Leicestershire Partnership NHS Trust,02/07/20,NURSE - BAND 5 - AGENCY,St Lukes Ward 3,HCL NURSING,HNSI0000413,1393.97
Department of Health,Leicestershire Partnership NHS Trust,02/07/20,NURSE - BAND 2 - AGENCY,Welford Ward,HCL NURSING,HNSI0000413,1187.46
Department of Health,Leicestershire Partnership NHS Trust,02/07/20,NURSE - BAND 5 - AGENCY,Welford Ward,HCL NURSING,HNSI0000413,293.08
Department of Health,Leicestershire Partnership NHS Trust,06/07/20,External Data Processing / Storage,Records & information Governance,H COATES LTD/TA C&V DATA,4001810,28187.38
Department of Health,Leicestershire Partnership NHS Trust,07/07/20,NURSE - BAND 2 - AGENCY,Beechwood Ward,HCL NURSING,HNSI0000419,549.93
Department of Health,Leicestershire Partnership NHS Trust,07/07/20,NURSE - BAND 5 - AGENCY,City Planned Care - East,HCL NURSING,HNSI0000419,23458.72
Department of Health,Leicestershire Partnership NHS Trust,07/07/20,NURSE - BAND 5 - AGENCY,City Planned Care - West,HCL NURSING,HNSI0000419,8191.55
Department of Health,Leicestershire Partnership NHS Trust,07/07/20,Nurse - Band 6 -Agency,City West CMHT MHSOP,HCL NURSING,HNSI0000419,1069.88
Department of Health,Leicestershire Partnership NHS Trust,07/07/20,NURSE - BAND 2 - AGENCY,Coalville Snibston Ward,HCL NURSING,HNSI0000419,176.21
Department of Health,Leicestershire Partnership NHS Trust,07/07/20,NURSE - BAND 5 - AGENCY,Coalville Snibston Ward,HCL NURSING,HNSI0000419,172.94
Department of Health,Leicestershire Partnership NHS Trust,07/07/20,NURSE - BAND 5 - AGENCY,Coalville Ward 2,HCL NURSING,HNSI0000419,763.27
Department of Health,Leicestershire Partnership NHS Trust,07/07/20,NURSE - BAND 2 - AGENCY,Coleman Ward,HCL NURSING,HNSI0000419,1034.43
Department of Health,Leicestershire Partnership NHS Trust,07/07/20,NURSE - BAND 5 - AGENCY,Coleman Ward,HCL NURSING,HNSI0000419,3670.94
Department of Health,Leicestershire Partnership NHS Trust,07/07/20,NURSE - BAND 2 - AGENCY,Dalgliesh Ward,HCL NURSING,HNSI0000419,210.46
Department of Health,Leicestershire Partnership NHS Trust,07/07/20,NURSE - BAND 5 - AGENCY,Dalgliesh Ward,HCL NURSING,HNSI0000419,1494.83
Department of Health,Leicestershire Partnership NHS Trust,07/07/20,NURSE - BAND 5 - AGENCY,"East Planned Care - Oadby,Wigston & Harborough",HCL NURSING,HNSI0000419,2750.43
Department of Health,Leicestershire Partnership NHS Trust,07/07/20,NURSE - BAND 2 - AGENCY,Gwendolen Ward,HCL NURSING,HNSI0000419,939.26
Department of Health,Leicestershire Partnership NHS Trust,07/07/20,NURSE - BAND 5 - AGENCY,Gwendolen Ward,HCL NURSING,HNSI0000419,907.73
Department of Health,Leicestershire Partnership NHS Trust,07/07/20,NURSE - BAND 2 - AGENCY,Kirby Ward,HCL NURSING,HNSI0000419,201.01
Department of Health,Leicestershire Partnership NHS Trust,07/07/20,NURSE - BAND 2 - AGENCY,Rutland Ward Nursing,HCL NURSING,HNSI0000419,473.48
Department of Health,Leicestershire Partnership NHS Trust,07/07/20,NURSE - BAND 5 - AGENCY,Rutland Ward Nursing,HCL NURSING,HNSI0000419,1007.79
Department of Health,Leicestershire Partnership NHS Trust,07/07/20,NURSE - BAND 2 - AGENCY,St Lukes Stroke Ward,HCL NURSING,HNSI0000419,2591.08
Department of Health,Leicestershire Partnership NHS Trust,07/07/20,NURSE - BAND 5 - AGENCY,St Lukes Stroke Ward,HCL NURSING,HNSI0000419,812.47
Department of Health,Leicestershire Partnership NHS Trust,07/07/20,NURSE - BAND 5 - AGENCY,St Lukes Ward 3,HCL NURSING,HNSI0000419,2212.36
Department of Health,Leicestershire Partnership NHS Trust,07/07/20,NURSE - BAND 2 - AGENCY,Welford Ward,HCL NURSING,HNSI0000419,711.01
Department of Health,Leicestershire Partnership NHS Trust,07/07/20,NURSE - BAND 5 - AGENCY,Welford Ward,HCL NURSING,HNSI0000419,292.61
Department of Health,Leicestershire Partnership NHS Trust,07/07/20,NURSE - BAND 5 - AGENCY,West Planned Care  - Charnwood Hub,HCL NURSING,HNSI0000419,224.79
Department of Health,Leicestershire Partnership NHS Trust,07/07/20,WIP Project Not in BS - Buildings excl Dwellings,Work in Progress,INTERSERVE CONSTRUCTION LTD,TMP00263,25483.28
Department of Health,Leicestershire Partnership NHS Trust,07/07/20,WIP Project Not in BS - Buildings excl Dwellings,Work in Progress,INTERSERVE CONSTRUCTION LTD,TMP00265,81648.18
Department of Health,Leicestershire Partnership NHS Trust,07/07/20,WIP Project Not in BS - Buildings excl Dwellings,Work in Progress,INTERSERVE CONSTRUCTION LTD,TMP00266,45800.96
Department of Health,Leicestershire Partnership NHS Trust,07/07/20,Minor Works,COVID 19,INTERSERVE CONSTRUCTION LTD,TMP00268,62803.49
Department of Health,Leicestershire Partnership NHS Trust,07/07/20,Nurse - Band 6 -Agency,Adult City East CMHT - Merlyn Vaz,HCL NURSING,HNSI0000418,5944.46
Department of Health,Leicestershire Partnership NHS Trust,07/07/20,Nurse - Band 6 -Agency,Adult County Charnwood CMHT - Loughborough Base,HCL NURSING,HNSI0000418,1069.88
Department of Health,Leicestershire Partnership NHS Trust,07/07/20,Nurse - Band 6 -Agency,Adult County West Leicestershire CMHT,HCL NURSING,HNSI0000418,1069.88
Department of Health,Leicestershire Partnership NHS Trust,07/07/20,NURSE - BAND 2 - AGENCY,Agnes Unit Management,HCL NURSING,HNSI0000418,1973.20
Department of Health,Leicestershire Partnership NHS Trust,07/07/20,NURSE - BAND 5 - AGENCY,Agnes Unit Management,HCL NURSING,HNSI0000418,596.13
Department of Health,Leicestershire Partnership NHS Trust,07/07/20,NURSE - BAND 5 - AGENCY,Ashby Ward (Bradgate Unit),HCL NURSING,HNSI0000418,710.33
Department of Health,Leicestershire Partnership NHS Trust,07/07/20,Nurse - Band 6 -Agency,Assertive Outreach Services,HCL NURSING,HNSI0000418,1069.88
Department of Health,Leicestershire Partnership NHS Trust,07/07/20,NURSE - BAND 2 - AGENCY,Aston Ward (Bradgate Unit),HCL NURSING,HNSI0000418,644.93
Department of Health,Leicestershire Partnership NHS Trust,07/07/20,NURSE - BAND 2 - AGENCY,Beaumont Ward - Bradgate Unit,HCL NURSING,HNSI0000418,1607.08
Department of Health,Leicestershire Partnership NHS Trust,07/07/20,NURSE - BAND 5 - AGENCY,Beaumont Ward - Bradgate Unit,HCL NURSING,HNSI0000418,659.63
Department of Health,Leicestershire Partnership NHS Trust,07/07/20,NURSE - BAND 2 - AGENCY,Belvoir Psychiatric Intensive Care Unit,HCL NURSING,HNSI0000418,209.42
Department of Health,Leicestershire Partnership NHS Trust,07/07/20,NURSE - BAND 5 - AGENCY,Belvoir Psychiatric Intensive Care Unit,HCL NURSING,HNSI0000418,659.63
Department of Health,Leicestershire Partnership NHS Trust,07/07/20,Nurse - Band 6 -Agency,Crisis Resolution,HCL NURSING,HNSI0000418,5006.37
Department of Health,Leicestershire Partnership NHS Trust,07/07/20,NURSE - BAND 2 - AGENCY,Griffin Ward (HPC),HCL NURSING,HNSI0000418,349.46
Department of Health,Leicestershire Partnership NHS Trust,07/07/20,NURSE - BAND 5 - AGENCY,Griffin Ward (HPC),HCL NURSING,HNSI0000418,1809.82
Department of Health,Leicestershire Partnership NHS Trust,07/07/20,NURSE - BAND 2 - AGENCY,Heather Ward,HCL NURSING,HNSI0000418,1935.07
Department of Health,Leicestershire Partnership NHS Trust,07/07/20,NURSE - BAND 5 - AGENCY,Heather Ward,HCL NURSING,HNSI0000418,659.63
Department of Health,Leicestershire Partnership NHS Trust,07/07/20,Nurse - Band 6 -Agency,Leicestershire Psych-oncology Service,HCL NURSING,HNSI0000418,427.95
Department of Health,Leicestershire Partnership NHS Trust,07/07/20,Nurse - Band 6 -Agency,Mental Health Triage Team,HCL NURSING,HNSI0000418,3890.77
Department of Health,Leicestershire Partnership NHS Trust,07/07/20,NURSE - BAND 5 - AGENCY,Mill Lodge,HCL NURSING,HNSI0000418,287.92
Department of Health,Leicestershire Partnership NHS Trust,07/07/20,NURSE - BAND 2 - AGENCY,Stewart House,HCL NURSING,HNSI0000418,144.97
Department of Health,Leicestershire Partnership NHS Trust,07/07/20,NURSE - BAND 5 - AGENCY,Watermead Ward (Bradgate Unit),HCL NURSING,HNSI0000418,659.63
Department of Health,Leicestershire Partnership NHS Trust,07/07/20,Non NHS ECRs,Out of County Income - Inpateints Project,CYGNET BEH HEALTH LTD,APL0138346,25668.00
Department of Health,Leicestershire Partnership NHS Trust,08/07/20,PropCo Estates Management,Melton Mowbray Hospital (previously St. Mary's) (PROPCO),NHS PROPERTY SERVICES LTD,00000001/H317555,25677.17
Department of Health,Leicestershire Partnership NHS Trust,08/07/20,PropCo Estates Management,"Braunstone Health and Social Care Centre (part) (P16, LPT)",NHS PROPERTY SERVICES LTD,00000001/H317571,49918.77
Department of Health,Leicestershire Partnership NHS Trust,08/07/20,PropCo Estates Management,St. Luke's Hospital (PROPCO),NHS PROPERTY SERVICES LTD,00000001/H317588,47500.00
Department of Health,Leicestershire Partnership NHS Trust,08/07/20,PropCo Estates Management,St. Luke's Hospital (PROPCO),NHS PROPERTY SERVICES LTD,00000001/H317577,42782.00
Department of Health,Leicestershire Partnership NHS Trust,08/07/20,PropCo Estates Management,Charnwood Mill (PROPCO),NHS PROPERTY SERVICES LTD,00000001/H317569,37621.55
Department of Health,Leicestershire Partnership NHS Trust,08/07/20,PropCo Estates Management,Melton Mowbray Hospital (previously St. Mary's) (PROPCO),NHS PROPERTY SERVICES LTD,00000001/H317561,48059.53
Department of Health,Leicestershire Partnership NHS Trust,08/07/20,Water & Sewerage Charges,"Beaumont Leys Health Centre (P94, LPT)",WATER PLUS,0865005329/INV03920868,86.59
Department of Health,Leicestershire Partnership NHS Trust,08/07/20,Water & Sewerage Charges,Bridge Park Road (Unit C18) (LPT),WATER PLUS,0865005329/INV03920868,25.13
Department of Health,Leicestershire Partnership NHS Trust,08/07/20,Water & Sewerage Charges,"Bridge Park Road - Units 2 and 3 (P148, LPT)",WATER PLUS,0865005329/INV03920868,824.53
Department of Health,Leicestershire Partnership NHS Trust,08/07/20,Water & Sewerage Charges,"Coalville Community Hospital (P138, LPT)",WATER PLUS,0865005329/INV03920868,775.41
Department of Health,Leicestershire Partnership NHS Trust,08/07/20,Water & Sewerage Charges,"Coalville Health Centre (P121, LPT)",WATER PLUS,0865005329/INV03920868,830.34
Department of Health,Leicestershire Partnership NHS Trust,08/07/20,Water & Sewerage Charges,"Evington Centre (P6, LPT)",WATER PLUS,0865005329/INV03920868,1610.16
Department of Health,Leicestershire Partnership NHS Trust,08/07/20,Water & Sewerage Charges,"Feilding Palmer Hospital (Lutterworth) (P131, LPT)",WATER PLUS,0865005329/INV03920868,48.22
Department of Health,Leicestershire Partnership NHS Trust,08/07/20,Water & Sewerage Charges,HIS,WATER PLUS,0865005329/INV03920868,57.62
Department of Health,Leicestershire Partnership NHS Trust,08/07/20,Water & Sewerage Charges,Hinckley & District Hospital (PROPCO),WATER PLUS,0865005329/INV03920868,105.86
Department of Health,Leicestershire Partnership NHS Trust,08/07/20,Water & Sewerage Charges,"Hinckley and Bosworth Community Hospital (Sunnyside) (P133, LPT)",WATER PLUS,0865005329/INV03920868,2726.72
Department of Health,Leicestershire Partnership NHS Trust,08/07/20,Water & Sewerage Charges,"Hynca Lodge (P33, LPT)",WATER PLUS,0865005329/INV03920868,3311.31
Department of Health,Leicestershire Partnership NHS Trust,08/07/20,Water & Sewerage Charges,"Loughborough Hospital (P136, LPT)",WATER PLUS,0865005329/INV03920868,97705.13
Department of Health,Leicestershire Partnership NHS Trust,08/07/20,Water & Sewerage Charges,"Narborough Health Centre (P117, LPT)",WATER PLUS,0865005329/INV03920868,916.74
Department of Health,Leicestershire Partnership NHS Trust,08/07/20,Water & Sewerage Charges,"OSL House (P54, LPT)",WATER PLUS,0865005329/INV03920868,323.81
Department of Health,Leicestershire Partnership NHS Trust,08/07/20,Water & Sewerage Charges,"Orchard Resource Centre (P15, LPT)",WATER PLUS,0865005329/INV03920868,387.78
Department of Health,Leicestershire Partnership NHS Trust,08/07/20,Water & Sewerage Charges,"Prince Philip House (P96, LPT)",WATER PLUS,0865005329/INV03920868,198.23
Department of Health,Leicestershire Partnership NHS Trust,08/07/20,Water & Sewerage Charges,Rothesay -  London Road 352A (LPT),WATER PLUS,0865005329/INV03920868,258.91
Department of Health,Leicestershire Partnership NHS Trust,08/07/20,Water & Sewerage Charges,"Rubicon Close 3 (P56, LPT)",WATER PLUS,0865005329/INV03920868,56.31
Department of Health,Leicestershire Partnership NHS Trust,08/07/20,Water & Sewerage Charges,"Rutland Memorial Hospital (P134, LPT)",WATER PLUS,0865005329/INV03920868,1439.79
Department of Health,Leicestershire Partnership NHS Trust,08/07/20,Water & Sewerage Charges,"Shepshed Health Centre (P123, LPT)",WATER PLUS,0865005329/INV03920868,269.28
Department of Health,Leicestershire Partnership NHS Trust,08/07/20,Water & Sewerage Charges,"Springfield Road Health Centre (P92, LPT)",WATER PLUS,0865005329/INV03920868,219.89
Department of Health,Leicestershire Partnership NHS Trust,08/07/20,Water & Sewerage Charges,"Stewart House (P61, LPT)",WATER PLUS,0865005329/INV03920868,872.01
Department of Health,Leicestershire Partnership NHS Trust,08/07/20,Water & Sewerage Charges,"Swithland House - London Road 352 (P44, LPT)",WATER PLUS,0865005329/INV03920868,108.26
Department of Health,Leicestershire Partnership NHS Trust,08/07/20,Water & Sewerage Charges,"The Agnes Unit (AKA Assessment and Treatment Centre) (P85, LPT)",WATER PLUS,0865005329/INV03920868,707.50
Department of Health,Leicestershire Partnership NHS Trust,08/07/20,Water & Sewerage Charges,"The Cedars (P19, LPT)",WATER PLUS,0865005329/INV03920868,247.26
Department of Health,Leicestershire Partnership NHS Trust,08/07/20,Water & Sewerage Charges,"The Grange 1 (P4, LPT)",WATER PLUS,0865005329/INV03920868,84.88
Department of Health,Leicestershire Partnership NHS Trust,08/07/20,Water & Sewerage Charges,"The Grange 2 (P41, LPT)",WATER PLUS,0865005329/INV03920868,82.29
Department of Health,Leicestershire Partnership NHS Trust,08/07/20,Water & Sewerage Charges,"The Willows - Cordelia Close (P22, LPT)",WATER PLUS,0865005329/INV03920868,1473.84
Department of Health,Leicestershire Partnership NHS Trust,08/07/20,Water & Sewerage Charges,"Westcotes Group - Tanglewood Resource Centre (P77, LPT)",WATER PLUS,0865005329/INV03920868,127.75
Department of Health,Leicestershire Partnership NHS Trust,08/07/20,Water & Sewerage Charges,"Westcotes Group -Westcotes House (P78, LPT)",WATER PLUS,0865005329/INV03920868,93.59
Department of Health,Leicestershire Partnership NHS Trust,08/07/20,PropCo Estates Management,St. Luke's Hospital (PROPCO),NHS PROPERTY SERVICES LTD,00000001/H319424,45163.85
Department of Health,Leicestershire Partnership NHS Trust,08/07/20,PropCo Estates Management,"Braunstone Health and Social Care Centre (part) (P16, LPT)",NHS PROPERTY SERVICES LTD,00000001/H319431,56313.80
Department of Health,Leicestershire Partnership NHS Trust,08/07/20,PropCo Estates Management,Melton Mowbray Hospital (previously St. Mary's) (PROPCO),NHS PROPERTY SERVICES LTD,00000001/H319432,37714.54
Department of Health,Leicestershire Partnership NHS Trust,08/07/20,PropCo Estates Management,Charnwood Mill (PROPCO),NHS PROPERTY SERVICES LTD,00000001/H319428,35564.06
Department of Health,Leicestershire Partnership NHS Trust,08/07/20,PropCo Estates Management,New Parks Health Centre (PROPCO),NHS PROPERTY SERVICES LTD,00000001/H319429,30776.17
Department of Health,Leicestershire Partnership NHS Trust,08/07/20,PropCo Estates Management,St. Luke's Hospital (PROPCO),NHS PROPERTY SERVICES LTD,00000001/H319440,136550.48
Department of Health,Leicestershire Partnership NHS Trust,08/07/20,Drugs,Adult City Drugs,JANSSEN-CILAG LTD,930665717,12630.70
Department of Health,Leicestershire Partnership NHS Trust,08/07/20,Drugs,Adult County Drugs,JANSSEN-CILAG LTD,930665717,18946.04
Department of Health,Leicestershire Partnership NHS Trust,08/07/20,Payroll Deductions -Salary Sacrifice Cars Scheme,Balance Sheet Collection,TUSKER,35081,26868.55
Department of Health,Leicestershire Partnership NHS Trust,09/07/20,Nurse - Band 6 -Agency,CAMHS Waiting List Monies,HCL SOCIAL CARE,SI0001206,24610.09
Department of Health,Leicestershire Partnership NHS Trust,09/07/20,Network Costs - WAN Maint,HIS Infrastructure,VIRGIN MEDIA BUSINESS,262421-170,41181.47
Department of Health,Leicestershire Partnership NHS Trust,10/07/20,PropCo Estates Management,"Braunstone Health and Social Care Centre (part) (P16, LPT)",NHS PROPERTY SERVICES LTD,00000001/H300691,56313.80
Department of Health,Leicestershire Partnership NHS Trust,10/07/20,HR / Payroll Services,HR Employment Services,LINCOLNSHIRE PART NHSFT(RP7),2000020808,29360.83
Department of Health,Leicestershire Partnership NHS Trust,10/07/20,PropCo Estates Management,Melton Mowbray Hospital (previously St. Mary's) (PROPCO),NHS PROPERTY SERVICES LTD,00000001/H300692,92486.61
Department of Health,Leicestershire Partnership NHS Trust,10/07/20,PropCo Estates Management,Charnwood Mill (PROPCO),NHS PROPERTY SERVICES LTD,00000001/H300678,35564.06
Department of Health,Leicestershire Partnership NHS Trust,10/07/20,PropCo Estates Management,New Parks Health Centre (PROPCO),NHS PROPERTY SERVICES LTD,00000001/H300685,30776.17
Department of Health,Leicestershire Partnership NHS Trust,10/07/20,PropCo Estates Management,St. Luke's Hospital (PROPCO),NHS PROPERTY SERVICES LTD,00000001/H300677,136550.48
Department of Health,Leicestershire Partnership NHS Trust,10/07/20,PropCo Estates Management,Melton Mowbray Hospital (previously St. Mary's) (PROPCO),NHS PROPERTY SERVICES LTD,00000001/H300681,37714.54
Department of Health,Leicestershire Partnership NHS Trust,13/07/20,Insurance Costs,Chief Executives Office,NHS LITIGATION AUTHORITY,SICX402325,141476.10
Department of Health,Leicestershire Partnership NHS Trust,13/07/20,WIP Project Not in BS - Information Technology,Work in Progress,DELL COMPUTERS,7402628746,28980.00
Department of Health,Leicestershire Partnership NHS Trust,13/07/20,Nurse - Band 6 -Agency,CAMHS Waiting List Monies,HCL SOCIAL CARE,SI0001221,27074.59
Department of Health,Leicestershire Partnership NHS Trust,13/07/20,Nurse - Band 6 -Agency,Adult City East CMHT - Merlyn Vaz,HCL NURSING,HNSI0000422,6051.69
Department of Health,Leicestershire Partnership NHS Trust,13/07/20,Nurse - Band 6 -Agency,Adult County Charnwood CMHT - Loughborough Base,HCL NURSING,HNSI0000422,855.90
Department of Health,Leicestershire Partnership NHS Trust,13/07/20,Nurse - Band 6 -Agency,Adult County West Leicestershire CMHT,HCL NURSING,HNSI0000422,2139.73
Department of Health,Leicestershire Partnership NHS Trust,13/07/20,NURSE - BAND 2 - AGENCY,Agnes Unit Management,HCL NURSING,HNSI0000422,3084.91
Department of Health,Leicestershire Partnership NHS Trust,13/07/20,NURSE - BAND 5 - AGENCY,Agnes Unit Management,HCL NURSING,HNSI0000422,3750.56
Department of Health,Leicestershire Partnership NHS Trust,13/07/20,NURSE - BAND 5 - AGENCY,Ashby Ward (Bradgate Unit),HCL NURSING,HNSI0000422,370.38
Department of Health,Leicestershire Partnership NHS Trust,13/07/20,Nurse - Band 6 -Agency,Assertive Outreach Services,HCL NURSING,HNSI0000422,1069.88
Department of Health,Leicestershire Partnership NHS Trust,13/07/20,NURSE - BAND 2 - AGENCY,Beaumont Ward - Bradgate Unit,HCL NURSING,HNSI0000422,2509.13
Department of Health,Leicestershire Partnership NHS Trust,13/07/20,NURSE - BAND 5 - AGENCY,Beaumont Ward - Bradgate Unit,HCL NURSING,HNSI0000422,266.74
Department of Health,Leicestershire Partnership NHS Trust,13/07/20,NURSE - BAND 2 - AGENCY,Belvoir Psychiatric Intensive Care Unit,HCL NURSING,HNSI0000422,398.32
Department of Health,Leicestershire Partnership NHS Trust,13/07/20,NURSE - BAND 5 - AGENCY,Belvoir Psychiatric Intensive Care Unit,HCL NURSING,HNSI0000422,339.96
Department of Health,Leicestershire Partnership NHS Trust,13/07/20,Nurse - Band 6 -Agency,Crisis Resolution,HCL NURSING,HNSI0000422,5794.45
Department of Health,Leicestershire Partnership NHS Trust,13/07/20,NURSE - BAND 5 - AGENCY,Griffin Ward (HPC),HCL NURSING,HNSI0000422,1511.75
Department of Health,Leicestershire Partnership NHS Trust,13/07/20,NURSE - BAND 2 - AGENCY,Heather Ward,HCL NURSING,HNSI0000422,1046.31
Department of Health,Leicestershire Partnership NHS Trust,13/07/20,Nurse - Band 6 -Agency,Leicestershire Psych-oncology Service,HCL NURSING,HNSI0000422,213.98
Department of Health,Leicestershire Partnership NHS Trust,13/07/20,Nurse - Band 6 -Agency,Mental Health Triage Team,HCL NURSING,HNSI0000422,2159.18
Department of Health,Leicestershire Partnership NHS Trust,13/07/20,NURSE - BAND 5 - AGENCY,Mill Lodge,HCL NURSING,HNSI0000422,346.54
Department of Health,Leicestershire Partnership NHS Trust,13/07/20,NURSE - BAND 2 - AGENCY,Phoenix Ward (HPC),HCL NURSING,HNSI0000422,262.44
Department of Health,Leicestershire Partnership NHS Trust,13/07/20,NURSE - BAND 2 - AGENCY,Thornton Ward - Bradgate Unit,HCL NURSING,HNSI0000422,185.33
Department of Health,Leicestershire Partnership NHS Trust,14/07/20,External Consultancy Fees,Finance Department,SEYMOUR JOHN PUB SERV LTD,P1334,40392.00
Department of Health,Leicestershire Partnership NHS Trust,14/07/20,Tax/SS Crs-LT1y-Deduction-Ers P11D,Balance Sheet Collection,H M REVENUE & CUSTOMS (IRT813),267PK001110872013A,195674.94
Department of Health,Leicestershire Partnership NHS Trust,14/07/20,FP10'S,Adult City Drugs,NHS BUS SERVICES AUTHORITY,1000065833,15687.02
Department of Health,Leicestershire Partnership NHS Trust,14/07/20,FP10'S,Adult County Drugs,NHS BUS SERVICES AUTHORITY,1000065833,32973.29
Department of Health,Leicestershire Partnership NHS Trust,14/07/20,FP10'S,CAMHS Outpatients,NHS BUS SERVICES AUTHORITY,1000065833,12007.33
Department of Health,Leicestershire Partnership NHS Trust,14/07/20,FP10'S,Children Services Medical,NHS BUS SERVICES AUTHORITY,1000065833,9051.46
Department of Health,Leicestershire Partnership NHS Trust,14/07/20,FP10'S,Dementia Related Drugs and Investigations,NHS BUS SERVICES AUTHORITY,1000065833,4820.43
Department of Health,Leicestershire Partnership NHS Trust,14/07/20,FP10'S,Eating Disorders Outpatient Service,NHS BUS SERVICES AUTHORITY,1000065833,1903.54
Department of Health,Leicestershire Partnership NHS Trust,14/07/20,FP10'S,Evington Centre,NHS BUS SERVICES AUTHORITY,1000065833,5.90
Department of Health,Leicestershire Partnership NHS Trust,14/07/20,FP10'S,Forensic Services - Community,NHS BUS SERVICES AUTHORITY,1000065833,90.62
Department of Health,Leicestershire Partnership NHS Trust,14/07/20,FP10'S,LOROS Pharmacy,NHS BUS SERVICES AUTHORITY,1000065833,308.14
Department of Health,Leicestershire Partnership NHS Trust,14/07/20,FP10'S,Liason Psychiatry Service,NHS BUS SERVICES AUTHORITY,1000065833,326.89
Department of Health,Leicestershire Partnership NHS Trust,14/07/20,FP10'S,PIER Team - Early Intervention Services,NHS BUS SERVICES AUTHORITY,1000065833,13883.09
Department of Health,Leicestershire Partnership NHS Trust,14/07/20,FP10'S,Snr Med Staff (Inc Med Reps),NHS BUS SERVICES AUTHORITY,1000065833,3378.85
Department of Health,Leicestershire Partnership NHS Trust,15/07/20,NURSE - BAND 2 - AGENCY,Beechwood Ward,HCL NURSING,HNSI0000423,336.88
Department of Health,Leicestershire Partnership NHS Trust,15/07/20,NURSE - BAND 5 - AGENCY,Beechwood Ward,HCL NURSING,HNSI0000423,992.15
Department of Health,Leicestershire Partnership NHS Trust,15/07/20,NURSE - BAND 5 - AGENCY,City Planned Care - East,HCL NURSING,HNSI0000423,21547.47
Department of Health,Leicestershire Partnership NHS Trust,15/07/20,NURSE - BAND 5 - AGENCY,City Planned Care - West,HCL NURSING,HNSI0000423,8472.63
Department of Health,Leicestershire Partnership NHS Trust,15/07/20,Nurse - Band 6 -Agency,City West CMHT MHSOP,HCL NURSING,HNSI0000423,2116.04
Department of Health,Leicestershire Partnership NHS Trust,15/07/20,NURSE - BAND 5 - AGENCY,Clarendon Ward,HCL NURSING,HNSI0000423,994.76
Department of Health,Leicestershire Partnership NHS Trust,15/07/20,NURSE - BAND 2 - AGENCY,Coalville Snibston Ward,HCL NURSING,HNSI0000423,1364.76
Department of Health,Leicestershire Partnership NHS Trust,15/07/20,NURSE - BAND 5 - AGENCY,Coalville Snibston Ward,HCL NURSING,HNSI0000423,659.23
Department of Health,Leicestershire Partnership NHS Trust,15/07/20,NURSE - BAND 2 - AGENCY,Coalville Ward 2,HCL NURSING,HNSI0000423,319.70
Department of Health,Leicestershire Partnership NHS Trust,15/07/20,NURSE - BAND 2 - AGENCY,Coleman Ward,HCL NURSING,HNSI0000423,2371.53
Department of Health,Leicestershire Partnership NHS Trust,15/07/20,NURSE - BAND 5 - AGENCY,Coleman Ward,HCL NURSING,HNSI0000423,2834.60
Department of Health,Leicestershire Partnership NHS Trust,15/07/20,NURSE - BAND 5 - AGENCY,Dalgliesh Ward,HCL NURSING,HNSI0000423,722.70
Department of Health,Leicestershire Partnership NHS Trust,15/07/20,NURSE - BAND 5 - AGENCY,"East Planned Care - Oadby,Wigston & Harborough",HCL NURSING,HNSI0000423,3088.62
Department of Health,Leicestershire Partnership NHS Trust,15/07/20,NURSE - BAND 2 - AGENCY,Gwendolen Ward,HCL NURSING,HNSI0000423,394.64
Department of Health,Leicestershire Partnership NHS Trust,15/07/20,NURSE - BAND 5 - AGENCY,Gwendolen Ward,HCL NURSING,HNSI0000423,1523.03
Department of Health,Leicestershire Partnership NHS Trust,15/07/20,NURSE - BAND 2 - AGENCY,Kirby Ward,HCL NURSING,HNSI0000423,631.10
Department of Health,Leicestershire Partnership NHS Trust,15/07/20,NURSE - BAND 2 - AGENCY,Lough Swithland Ward,HCL NURSING,HNSI0000423,213.27
Department of Health,Leicestershire Partnership NHS Trust,15/07/20,NURSE - BAND 5 - AGENCY,Rutland Ward Nursing,HCL NURSING,HNSI0000423,392.87
Department of Health,Leicestershire Partnership NHS Trust,15/07/20,NURSE - BAND 2 - AGENCY,St Lukes Stroke Ward,HCL NURSING,HNSI0000423,1172.85
Department of Health,Leicestershire Partnership NHS Trust,15/07/20,NURSE - BAND 5 - AGENCY,St Lukes Ward 3,HCL NURSING,HNSI0000423,1872.25
Department of Health,Leicestershire Partnership NHS Trust,15/07/20,NURSE - BAND 5 - AGENCY,Wakerley Ward,HCL NURSING,HNSI0000423,2825.75
Department of Health,Leicestershire Partnership NHS Trust,15/07/20,NURSE - BAND 2 - AGENCY,Welford Ward,HCL NURSING,HNSI0000423,709.38
Department of Health,Leicestershire Partnership NHS Trust,15/07/20,NURSE - BAND 5 - AGENCY,Welford Ward,HCL NURSING,HNSI0000423,302.58
Department of Health,Leicestershire Partnership NHS Trust,15/07/20,Landline Telephone Rental / Calls,"Beaumont Leys Health Centre (P94, LPT)",VIRGIN MEDIA BUSINESS,853083001/004/0720,447.68
Department of Health,Leicestershire Partnership NHS Trust,15/07/20,Landline Telephone Rental / Calls,Belgrave Health Centre (CHP),VIRGIN MEDIA BUSINESS,853083001/004/0720,311.32
Department of Health,Leicestershire Partnership NHS Trust,15/07/20,Landline Telephone Rental / Calls,"Bennion Centre (including Forest Grange Day Unit) (P8, LPT)",VIRGIN MEDIA BUSINESS,853083001/004/0720,7.74
Department of Health,Leicestershire Partnership NHS Trust,15/07/20,Landline Telephone Rental / Calls,"Bradgate Unit (including Glenvale day Unit) (P7, LPT)",VIRGIN MEDIA BUSINESS,853083001/004/0720,9446.18
Department of Health,Leicestershire Partnership NHS Trust,15/07/20,Landline Telephone Rental / Calls,Braunstone Health and Social Care Centre (Part) (PROPCO),VIRGIN MEDIA BUSINESS,853083001/004/0720,1073.94
Department of Health,Leicestershire Partnership NHS Trust,15/07/20,Landline Telephone Rental / Calls,Bridge Park Plaza - First Floor (LPT),VIRGIN MEDIA BUSINESS,853083001/004/0720,3900.28
Department of Health,Leicestershire Partnership NHS Trust,15/07/20,Landline Telephone Rental / Calls,"Coalville Community Hospital (P138, LPT)",VIRGIN MEDIA BUSINESS,853083001/004/0720,1363.62
Department of Health,Leicestershire Partnership NHS Trust,15/07/20,Landline Telephone Rental / Calls,"Coalville Health Centre (P121, LPT)",VIRGIN MEDIA BUSINESS,853083001/004/0720,256.42
Department of Health,Leicestershire Partnership NHS Trust,15/07/20,Landline Telephone Rental / Calls,County Hall,VIRGIN MEDIA BUSINESS,853083001/004/0720,1170.34
Department of Health,Leicestershire Partnership NHS Trust,15/07/20,Landline Telephone Rental / Calls,Estates & Facilities Central,VIRGIN MEDIA BUSINESS,853083001/004/0720,3842.54
Department of Health,Leicestershire Partnership NHS Trust,15/07/20,Landline Telephone Rental / Calls,"Evington Centre (P6, LPT)",VIRGIN MEDIA BUSINESS,853083001/004/0720,1868.96
Department of Health,Leicestershire Partnership NHS Trust,15/07/20,Landline Telephone Rental / Calls,HIS,VIRGIN MEDIA BUSINESS,853083001/004/0720,4127.24
Department of Health,Leicestershire Partnership NHS Trust,15/07/20,Landline Telephone Rental / Calls,"Hawthorne Centre - Coalville (P14, LPT)",VIRGIN MEDIA BUSINESS,853083001/004/0720,637.79
Department of Health,Leicestershire Partnership NHS Trust,15/07/20,Landline Telephone Rental / Calls,Hinckley & District Hospital (PROPCO),VIRGIN MEDIA BUSINESS,853083001/004/0720,1423.37
Department of Health,Leicestershire Partnership NHS Trust,15/07/20,Landline Telephone Rental / Calls,"Hinckley and Bosworth Community Hospital (Sunnyside) (P133, LPT)",VIRGIN MEDIA BUSINESS,853083001/004/0720,1003.86
Department of Health,Leicestershire Partnership NHS Trust,15/07/20,Landline Telephone Rental / Calls,Hood Park Leisure Centre Clinic,VIRGIN MEDIA BUSINESS,853083001/004/0720,23.22
Department of Health,Leicestershire Partnership NHS Trust,15/07/20,Landline Telephone Rental / Calls,"Hynca Lodge (P33, LPT)",VIRGIN MEDIA BUSINESS,853083001/004/0720,418.34
Department of Health,Leicestershire Partnership NHS Trust,15/07/20,Landline Telephone Rental / Calls,"Legion House, Ashby",VIRGIN MEDIA BUSINESS,853083001/004/0720,66.92
Department of Health,Leicestershire Partnership NHS Trust,15/07/20,Landline Telephone Rental / Calls,Loughborough Health Centre (PROPCO),VIRGIN MEDIA BUSINESS,853083001/004/0720,6.51
Department of Health,Leicestershire Partnership NHS Trust,15/07/20,Landline Telephone Rental / Calls,"Loughborough Hospital (P136, LPT)",VIRGIN MEDIA BUSINESS,853083001/004/0720,5115.30
Department of Health,Leicestershire Partnership NHS Trust,15/07/20,Landline Telephone Rental / Calls,Mawson House (LPT),VIRGIN MEDIA BUSINESS,853083001/004/0720,700.92
Department of Health,Leicestershire Partnership NHS Trust,15/07/20,Landline Telephone Rental / Calls,Melbourne Centre (Pt Grnd flr) (PROPCO),VIRGIN MEDIA BUSINESS,853083001/004/0720,6.45
Department of Health,Leicestershire Partnership NHS Trust,15/07/20,Landline Telephone Rental / Calls,Melton Mowbray Hospital (previously St. Mary's) (PROPCO),VIRGIN MEDIA BUSINESS,853083001/004/0720,1768.11
Department of Health,Leicestershire Partnership NHS Trust,15/07/20,Landline Telephone Rental / Calls,Merlyn Vaz Centre (CHP),VIRGIN MEDIA BUSINESS,853083001/004/0720,2009.15
Department of Health,Leicestershire Partnership NHS Trust,15/07/20,Landline Telephone Rental / Calls,"Mett Centre (P49, LPT)",VIRGIN MEDIA BUSINESS,853083001/004/0720,87.40
Department of Health,Leicestershire Partnership NHS Trust,15/07/20,Landline Telephone Rental / Calls,NSPCC Training Cente,VIRGIN MEDIA BUSINESS,853083001/004/0720,159.96
Department of Health,Leicestershire Partnership NHS Trust,15/07/20,Landline Telephone Rental / Calls,New Parks Health Centre (PROPCO),VIRGIN MEDIA BUSINESS,853083001/004/0720,1578.73
Department of Health,Leicestershire Partnership NHS Trust,15/07/20,Landline Telephone Rental / Calls,"OSL House (P54, LPT)",VIRGIN MEDIA BUSINESS,853083001/004/0720,3173.10
Department of Health,Leicestershire Partnership NHS Trust,15/07/20,Landline Telephone Rental / Calls,"Orchard Resource Centre (P15, LPT)",VIRGIN MEDIA BUSINESS,853083001/004/0720,855.04
Department of Health,Leicestershire Partnership NHS Trust,15/07/20,Landline Telephone Rental / Calls,Pasley Road Health Centre (PROPCO),VIRGIN MEDIA BUSINESS,853083001/004/0720,149.71
Department of Health,Leicestershire Partnership NHS Trust,15/07/20,Landline Telephone Rental / Calls,"Prince Philip House (P96, LPT)",VIRGIN MEDIA BUSINESS,853083001/004/0720,1542.80
Department of Health,Leicestershire Partnership NHS Trust,15/07/20,Landline Telephone Rental / Calls,Rushey Mead Health Centre (PROPCO),VIRGIN MEDIA BUSINESS,853083001/004/0720,92.70
Department of Health,Leicestershire Partnership NHS Trust,15/07/20,Landline Telephone Rental / Calls,"Shepshed Health Centre (P123, LPT)",VIRGIN MEDIA BUSINESS,853083001/004/0720,13.79
Department of Health,Leicestershire Partnership NHS Trust,15/07/20,Landline Telephone Rental / Calls,"Springfield Road Health Centre (P92, LPT)",VIRGIN MEDIA BUSINESS,853083001/004/0720,400.74
Department of Health,Leicestershire Partnership NHS Trust,15/07/20,Landline Telephone Rental / Calls,"St Peters Health Center (Part 1st and 2nd floors) (P66, LPT)",VIRGIN MEDIA BUSINESS,853083001/004/0720,1145.39
Department of Health,Leicestershire Partnership NHS Trust,15/07/20,Landline Telephone Rental / Calls,"Stewart House (P61, LPT)",VIRGIN MEDIA BUSINESS,853083001/004/0720,7.74
Department of Health,Leicestershire Partnership NHS Trust,15/07/20,Landline Telephone Rental / Calls,"Swithland House - London Road 352 (P44, LPT)",VIRGIN MEDIA BUSINESS,853083001/004/0720,451.58
Department of Health,Leicestershire Partnership NHS Trust,15/07/20,Landline Telephone Rental / Calls,"The Cedars (P19, LPT)",VIRGIN MEDIA BUSINESS,853083001/004/0720,801.16
Department of Health,Leicestershire Partnership NHS Trust,15/07/20,Landline Telephone Rental / Calls,"The Willows - Cordelia Close (P22, LPT)",VIRGIN MEDIA BUSINESS,853083001/004/0720,520.61
Department of Health,Leicestershire Partnership NHS Trust,15/07/20,Landline Telephone Rental / Calls,Uppingham Road Health Centre (PROPCO),VIRGIN MEDIA BUSINESS,853083001/004/0720,283.13
Department of Health,Leicestershire Partnership NHS Trust,15/07/20,Landline Telephone Rental / Calls,"Valentine Centre (P3, LPT)",VIRGIN MEDIA BUSINESS,853083001/004/0720,2656.73
Department of Health,Leicestershire Partnership NHS Trust,15/07/20,Landline Telephone Rental / Calls,Warren Park Way 25 (PROPCO),VIRGIN MEDIA BUSINESS,853083001/004/0720,716.89
Department of Health,Leicestershire Partnership NHS Trust,15/07/20,Landline Telephone Rental / Calls,"Westcotes Group -Westcotes House (P78, LPT)",VIRGIN MEDIA BUSINESS,853083001/004/0720,2127.01
Department of Health,Leicestershire Partnership NHS Trust,15/07/20,Landline Telephone Rental / Calls,Westcotes Health Centre (CHP),VIRGIN MEDIA BUSINESS,853083001/004/0720,914.59
Department of Health,Leicestershire Partnership NHS Trust,15/07/20,Landline Telephone Rental / Calls,"Winstanley Drive Health Centre (P8, LPT)",VIRGIN MEDIA BUSINESS,853083001/004/0720,503.89
Department of Health,Leicestershire Partnership NHS Trust,15/07/20,Med Trainees - FY1,Medical Trainees,UHL NHS TRUST (RWE),L0243122,28807.82
Department of Health,Leicestershire Partnership NHS Trust,15/07/20,Nurse - Band 6 -Agency,CAMHS Waiting List Monies,HCL SOCIAL CARE,SI0001216,22454.44
Department of Health,Leicestershire Partnership NHS Trust,15/07/20,Computer Software,HIS,SOFTCAT PLC,INV02630909,101443.27
Department of Health,Leicestershire Partnership NHS Trust,16/07/20,Computer Software,HIS,SOFTCAT PLC,INV02630908,71183.33
Department of Health,Leicestershire Partnership NHS Trust,16/07/20,Internal Printing (machines and ink),Estates & Facilities Central,LEXMARK INTERNATIONAL LTD,900650008567,33707.29
Department of Health,Leicestershire Partnership NHS Trust,17/07/20,UHL Facilities Management SLA,Estates Central Invoices To Recharge,UHL NHS TRUST (RWE),L0243212,827106.58
Department of Health,Leicestershire Partnership NHS Trust,20/07/20,Rates,"OSL House (P54, LPT)",BLABY DISTRICT COUNCIL,N030054285/20-21CR,-41778.00
Department of Health,Leicestershire Partnership NHS Trust,20/07/20,Water & Sewerage Charges,"Loughborough Hospital (P136, LPT)",WATER PLUS,0865005329/CRN/3005955281,-94202.01
Department of Health,Leicestershire Partnership NHS Trust,20/07/20,Crs_NHS_LT1y -Resus Inventory Supplied.,Balance Sheet Collection,SUPPLY CHAIN CO LTD,1121063055,38320.44
Department of Health,Leicestershire Partnership NHS Trust,20/07/20,Rates,"OSL House (P54, LPT)",BLABY DISTRICT COUNCIL,N030054285/20-21REVISED,27528.53
Department of Health,Leicestershire Partnership NHS Trust,21/07/20,Med GP Trainees,Medical Trainees,ST.HELENS & KNOWSLEY NHS TRUST,16797960,75000.00
Department of Health,Leicestershire Partnership NHS Trust,22/07/20,Telephone equipment,New Parks Health Centre (PROPCO),VIRGIN MEDIA BUSINESS,60042189,22642.64
Department of Health,Leicestershire Partnership NHS Trust,22/07/20,Telephone equipment,SPA,VIRGIN MEDIA BUSINESS,60042189,8805.47
Department of Health,Leicestershire Partnership NHS Trust,22/07/20,Telephone equipment,"LGH - Gwendolen House (P4, LPT)",VIRGIN MEDIA BUSINESS,60042190,33004.31
Department of Health,Leicestershire Partnership NHS Trust,23/07/20,Computer Software,School Age Immunisation and Vaccinations,CINNAMON DIGITAL APP LTD,INV-020,32702.00
Department of Health,Leicestershire Partnership NHS Trust,23/07/20,WIP Project Not in BS - Buildings excl Dwellings,Work in Progress,INTERSERVE CONSTRUCTION LTD,TMP00354,555412.67
Department of Health,Leicestershire Partnership NHS Trust,23/07/20,Prep_ LT1y -Prepayments Lease Cars,Balance Sheet Collection,AUTOMOTIVE LEASING LTD,506978008,26342.40
Department of Health,Leicestershire Partnership NHS Trust,23/07/20,Trade_Drs_LT1y -Lease Cars Invoicing Contrl Ac.,Balance Sheet Collection,AUTOMOTIVE LEASING LTD,506978008,790.75
Department of Health,Leicestershire Partnership NHS Trust,23/07/20,Leased / Hired Vehicles,CAMHS Inpatient Service,AUTOMOTIVE LEASING LTD,506978008,40.00
Department of Health,Leicestershire Partnership NHS Trust,23/07/20,Leased / Hired Vehicles,Mill Lodge,AUTOMOTIVE LEASING LTD,506978008,187.77
Department of Health,Leicestershire Partnership NHS Trust,23/07/20,Leased / Hired Vehicles,School Age Immunisation and Vaccinations,AUTOMOTIVE LEASING LTD,506978008,703.36
Department of Health,Leicestershire Partnership NHS Trust,23/07/20,Leased / Hired Vehicles,West Planned Care  - Hinckley Hub,AUTOMOTIVE LEASING LTD,506978008,10.00
Department of Health,Leicestershire Partnership NHS Trust,27/07/20,Crs_NHS_LT1y -Resus Inventory Supplied.,Balance Sheet Collection,SUPPLY CHAIN CO LTD,1121066927,25311.84
Department of Health,Leicestershire Partnership NHS Trust,27/07/20,Medical & Surgical Equipment,Non Recurrent 2012/13,MEDSTROM HEALTHCARE,0000043384,41391.60
Department of Health,Leicestershire Partnership NHS Trust,29/07/20,Rent,"St Peters Health Center (Part 1st and 2nd floors) (P66, LPT)",LEICESTER LIFT CO,LEP1/SI0535,27433.45
Department of Health,Leicestershire Partnership NHS Trust,29/07/20,CHP Estates Management,Belgrave Health Centre (CHP),COMM HLTH PARTNERSHIPS LTD,0060161603,10177.69
Department of Health,Leicestershire Partnership NHS Trust,29/07/20,CHP Estates Management,Merlyn Vaz Centre (CHP),COMM HLTH PARTNERSHIPS LTD,0060161603,60652.57
Department of Health,Leicestershire Partnership NHS Trust,29/07/20,CHP Estates Management,"St Peters Health Center (Part 1st and 2nd floors) (P66, LPT)",COMM HLTH PARTNERSHIPS LTD,0060161603,9458.26
Department of Health,Leicestershire Partnership NHS Trust,29/07/20,CHP Estates Management,Westcotes Health Centre (CHP),COMM HLTH PARTNERSHIPS LTD,0060161603,12551.16
